Workbook

Sheet LE MANS 2017
D3: LEMANS | E3: Team | F3: QUALIF | G3: MANCHE 1 | H3: MANCHE 2 | I3: MANCHE 3 | J3: TOTAL WE | L3: Point
E4: GT 3 | F4: 21 | G4: 31 | H4: 64 | I4: 31 | J4: =F4+G4+H4+I4 -> 147 | L4: 30
E5: ETA | F5: 24 | G5: 27 | H5: 54 | I5: 27 | J5: 132 | L5: 27
E6: Rainhur | F6: 30 | G6: 24 | H6: 48 | I6: 24 | J6: 126 | L6: 24
E7: Sagou1 | F7: 27 | G7: 21 | H7: 36 | I7: 15 | J7: 99 | L7: 21
E8: CSR93 | F8: 15 | G8: 12 | H8: 42 | I8: 18 | J8: 87 | L8: 18
E9: EN PISTE | F9: 18 | G9: 18 | H9: 20 | I9: 21 | J9: 77 | L9: 15
E10: CIRSO SRCB | F10: 10 | G10: 15 | H10: 30 | I10: 12 | J10: 67 | L10: 12
E11: CASA SLOT | F11: 12 | G11: 10 | H11: 24 | I11: 8 | J11: 54 | L11: 10
E12: LAGAFFE | F12: 8 | G12: 8 | H12: 16 | I12: 10 | J12: 42 | L12: 8
D15: BSR21 | E15: Team | F15: QUALIF | G15: MANCHE 1 | H15: MANCHE 2 | I15: MANCHE 3 | J15: TOTAL WE | L15: Points CFD
E16: Rainhur | F16: 24 | G16: 34 | H16: 61 | I16: 30 | J16: =F16+G16+H16+I16 -> 149 | L16: =J16+J6 -> 275
E17: Sagou1 | F17: 27 | G17: 27 | H17: 54 | I17: 21 | J17: 129 | L17: =J17+J7 -> 228
E18: CSR93 | F18: 30 | G18: 21 | H18: 48 | I18: 25 | J18: 124 | L18: =J18+J8 -> 211
E19: CIRSO SRCB | F19: 18 | G19: 18 | H19: 42 | I19: 18 | J19: 96 | L19: =J19+J10 -> 163
E20: GT 3 | F20: 21 | G20: 24 | H20: 24 | I20: 27 | J20: 96 | L20: =J20+J4 -> 243
E21: LAGAFFE | F21: 15 | G21: 12 | H21: 36 | I21: 15 | J21: 78 | L21: =J21+J12 -> 120
E22: FOREZIENS | F22: 12 | G22: 15 | H22: 30 | I22: 12 | J22: 69 | L22: 69
E23: CASA SLOT | F23: 10 | G23: 10 | H23: 20 | I23: 10 | J23: 50 | L23: =J23+J11 -> 104
B24: Team | C24: TOTAL | D24: CHARLEROI | E24: Team | F24: QUALIF | G24: MANCHE 1 | H24: MANCHE 2 | I24: MANCHE 3 | J24: TOTAL WE | L24: Points CFD | M24: Point
A25: 1 | B25: Rainhur | C25: 401 | E25: Rainhur | F25: 18 | G25: 27 | H25: 60 | I25: 21 | J25: =F25+G25+H25+I25 -> 126 | K25: 1 | L25: =J6+J25+J16 -> 401 | M25: 30
A26: 2 | B26: GT 3 | C26: 361 | E26: CIRSO SRCB | F26: 21 | G26: 34 | H26: 48 | I26: 18 | J26: 121 | K26: 2 | L26: =J10+J26+J19 -> 284 | M26: 27
A27: 3 | B27: Sagou1 | C27: 333 | E27: GT 3 | F27: 15 | G27: 18 | H27: 54 | I27: 31 | J27: 118 | K27: 3 | L27: =J4+J20+J27 -> 361 | M27: 24
A28: 4 | B28: CSR93 | C28: 323 | E28: CSR93 | F28: 24 | G28: 24 | H28: 37 | I28: 27 | J28: 112 | K28: 4 | L28: =J8+J28+J18 -> 323 | M28: 21
A29: 5 | B29: CIRSO SRCB | C29: 284 | E29: Sagou1 | F29: 27 | G29: 21 | H29: 42 | I29: 15 | J29: 105 | K29: 5 | L29: =J7+J29+J17 -> 333 | M29: 18
A30: 6 | B30: ETA | C30: 228 | E30: ETA | F30: 30 | G30: 12 | H30: 30 | I30: 24 | J30: 96 | K30: 6 | L30: =J5+J30 -> 228 | M30: 15
A31: 7 | B31: LAGAFFE | C31: 170 | E31: CASA SLOT | F31: 12 | G31: 15 | H31: 24 | I31: 12 | J31: 63 | K31: 7 | L31: =J11+J31+J23 -> 167 | M31: 12
A32: 8 | B32: CASA SLOT | C32: 167 | E32: LAGAFFE | F32: 10 | G32: 10 | H32: 20 | I32: 10 | J32: 50 | K32: 8 | L32: =J32+J21+J12 -> 170 | M32: 10
A33: 9 | B33: EN PISTE | C33: 77 | M33: 8
A34: 10 | B34: FOREZIENS | C34: 69
